[Event "South Island Championships 2023"]
[Site "Oamaru, New Zealand"]
[Date "2023.09.30"]
[Round "8.4"]
[White "Cummings, Nick"]
[Black "Kerr, Atlas"]
[Result "1/2-1/2"]
[TimeControl "90 + 30"]
[WhiteFideId "4301218"]
[BlackFideId "4319486"]
[WhiteElo "2094"]
[BlackElo "1853"]

1. d4 {[%clk 01:30:58]} {[%emt 00:00:01]} Nf6 {[%clk 01:30:48]} {[%emt
00:00:12]} 2. Nf3 {[%clk 01:31:21]} {[%emt 00:00:07]} e6 {[%clk 01:30:55]}
{[%emt 00:00:24]} 3. g3 {[%clk 01:31:43]} {[%emt 00:00:07]} d5 {[%clk
01:30:27]} {[%emt 00:00:59]} 4. c4 {[%clk 01:31:38]} {[%emt 00:00:35]} Bb4+
{[%clk 01:27:20]} {[%emt 00:03:36]} 5. Bd2 {[%clk 01:32:00]} {[%emt 00:00:09]}
Bxd2+ {[%clk 01:27:11]} {[%emt 00:00:38]} 6. Nbxd2 {[%clk 01:32:25]} {[%emt
00:00:05]} O-O {[%clk 01:26:42]} {[%emt 00:00:59]} 7. Bg2 {[%clk 01:32:39]}
{[%emt 00:00:16]} c6 {[%clk 01:25:06]} {[%emt 00:02:07]} 8. O-O {[%clk
01:32:38]} {[%emt 00:00:30]} a5 {[%clk 01:17:06]} {[%emt 00:08:31]} 9. Qc2
{[%clk 01:28:13]} {[%emt 00:04:54]} Nbd7 {[%clk 01:09:08]} {[%emt 00:08:29]} 10.
e4 {[%clk 01:27:04]} {[%emt 00:01:38]} dxe4 {[%clk 01:08:45]} {[%emt 00:00:53]}
11. Nxe4 {[%clk 01:26:16]} {[%emt 00:01:18]} Nxe4 {[%clk 00:59:29]} {[%emt
00:09:46]} 12. Qxe4 {[%clk 01:26:38]} {[%emt 00:00:08]} Nf6 {[%clk 00:59:56]}
{[%emt 00:00:03]} 13. Qe2 {[%clk 01:27:04]} {[%emt 00:00:05]} Bd7 {[%clk
00:55:12]} {[%emt 00:05:14]} 14. Rfd1 {[%clk 01:23:21]} {[%emt 00:04:12]} Qc8
{[%clk 00:50:34]} {[%emt 00:05:08]} 15. Ne5 {[%clk 01:20:12]} {[%emt 00:03:38]}
Rd8 {[%clk 00:45:55]} {[%emt 00:05:10]} 16. Rac1 {[%clk 01:16:10]} {[%emt
00:04:32]} c5 {[%clk 00:42:09]} {[%emt 00:04:17]} 17. dxc5 {[%clk 01:12:07]}
{[%emt 00:04:33]} Qxc5 {[%clk 00:41:50]} {[%emt 00:00:49]} 18. Bxb7 {[%clk
01:09:15]} {[%emt 00:03:21]} Rab8 {[%clk 00:41:23]} {[%emt 00:00:57]} 19. Bg2
{[%clk 01:09:06]} {[%emt 00:00:38]} Be8 {[%clk 00:37:01]} {[%emt 00:04:53]} 20.
b3 {[%clk 01:06:19]} {[%emt 00:03:16]} a4 {[%clk 00:36:21]} {[%emt 00:01:12]}
21. Nd3 {[%clk 01:05:35]} {[%emt 00:01:11]} Qa3 {[%clk 00:35:31]} {[%emt
00:01:23]} 22. b4 {[%clk 01:03:13]} {[%emt 00:02:52]} Rd4 {[%clk 00:28:52]}
{[%emt 00:07:09]} 23. b5 {[%clk 00:52:49]} {[%emt 00:10:52]} Rbd8 {[%clk
00:28:39]} {[%emt 00:00:45]} 24. Ne1 {[%clk 00:41:36]} {[%emt 00:11:41]} Rxd1
{[%clk 00:28:17]} {[%emt 00:00:54]} 25. Rxd1 {[%clk 00:41:49]} {[%emt
00:00:17]} Rxd1 {[%clk 00:28:41]} {[%emt 00:00:04]} 26. Qxd1 {[%clk 00:42:15]}
{[%emt 00:00:04]} Qxa2 {[%clk 00:29:07]} {[%emt 00:00:05]} 27. Qc2 {[%clk
00:35:40]} {[%emt 00:07:04]} Qa1 {[%clk 00:28:53]} {[%emt 00:00:46]} 28. Kf1
{[%clk 00:35:25]} {[%emt 00:00:45]} a3 {[%clk 00:29:18]} {[%emt 00:00:05]} 29.
b6 {[%clk 00:33:08]} {[%emt 00:02:47]} a2 {[%clk 00:29:19]} {[%emt 00:00:29]}
30. b7 {[%clk 00:33:23]} {[%emt 00:00:14]} Qxe1+ {[%clk 00:28:19]} {[%emt
00:01:30]} 31. Kxe1 {[%clk 00:33:41]} {[%emt 00:00:12]} a1=Q+ {[%clk 00:28:41]}
{[%emt 00:00:08]} 32. Qd1 {[%clk 00:30:56]} {[%emt 00:03:14]} Qe5+ {[%clk
00:25:27]} {[%emt 00:03:45]} 33. Kf1 {[%clk 00:28:55]} {[%emt 00:02:29]} Qc7
{[%clk 00:24:49]} {[%emt 00:01:10]} 34. Qb3 {[%clk 00:26:24]} {[%emt 00:03:00]}
Nd7 {[%clk 00:23:53]} {[%emt 00:01:27]} 35. Qb5 {[%clk 00:24:39]} {[%emt
00:02:13]} Qb8 {[%clk 00:11:03]} {[%emt 00:13:22]} 36. Qc6 {[%clk 00:18:28]}
{[%emt 00:06:39]} Qe5 {[%clk 00:09:16]} {[%emt 00:02:19]} 37. Bf3 {[%clk
00:17:40]} {[%emt 00:01:16]} Kf8 {[%clk 00:08:24]} {[%emt 00:01:24]} 38. Qc8
{[%clk 00:17:01]} {[%emt 00:01:08]} Nb8 {[%clk 00:06:43]} {[%emt 00:02:12]} 39.
c5 {[%clk 00:13:41]} {[%emt 00:03:47]} Ke7 {[%clk 00:06:54]} {[%emt 00:00:23]}
40. c6 {[%clk 00:13:19]} {[%emt 00:00:51]} Qb5+ {[%clk 00:07:14]} {[%emt
00:00:10]} 41. Kg2 {[%clk 00:12:25]} {[%emt 00:01:24]} Nxc6 {[%clk 00:07:28]}
{[%emt 00:00:17]} 42. Kg1 {[%clk 00:07:32]} {[%emt 00:05:21]} Qb1+ {[%clk
00:06:45]} {[%emt 00:01:14]} 43. Kg2 {[%clk 00:07:42]} {[%emt 00:00:19]} Qb5
{[%clk 00:07:12]} {[%emt 00:00:04]} 44. Kg1 {[%clk 00:07:57]} {[%emt 00:00:14]}
1/2-1/2

[Event "South Island Championships 2023"]
[Site "Oamaru, New Zealand"]
[Date "2023.09.30"]
[Round "8.7"]
[White "Mayrhuber, Nikola"]
[Black "McConnell, Jack"]
[Result "1-0"]
[TimeControl "90 + 30"]
[WhiteFideId "1637819"]
[BlackFideId "4321871"]
[WhiteElo "2059"]
[BlackElo "1640"]

1. d4 {[%clk 01:30:58]} {[%emt 00:00:02]} Nf6 {[%clk 01:30:54]} {[%emt
00:00:05]} 2. c4 {[%clk 01:31:25]} {[%emt 00:00:04]} c5 {[%clk 01:31:19]}
{[%emt 00:00:05]} 3. d5 {[%clk 01:31:51]} {[%emt 00:00:05]} e6 {[%clk
01:31:43]} {[%emt 00:00:05]} 4. Nc3 {[%clk 01:31:53]} {[%emt 00:00:28]} exd5
{[%clk 01:32:05]} {[%emt 00:00:07]} 5. cxd5 {[%clk 01:32:19]} {[%emt 00:00:05]}
d6 {[%clk 01:32:27]} {[%emt 00:00:08]} 6. e4 {[%clk 01:32:26]} {[%emt
00:00:24]} g6 {[%clk 01:32:50]} {[%emt 00:00:06]} 7. f4 {[%clk 01:32:51]}
{[%emt 00:00:06]} Bg7 {[%clk 01:33:13]} {[%emt 00:00:06]} 8. Nf3 {[%clk
01:33:18]} {[%emt 00:00:03]} O-O {[%clk 01:33:10]} {[%emt 00:00:33]} 9. Be2
{[%clk 01:32:43]} {[%emt 00:01:06]} b5 {[%clk 01:29:38]} {[%emt 00:04:01]} 10.
e5 {[%clk 01:25:55]} {[%emt 00:07:18]} Ng4 {[%clk 01:28:14]} {[%emt 00:01:53]}
11. h3 {[%clk 01:25:47]} {[%emt 00:00:38]} b4 {[%clk 01:24:21]} {[%emt
00:04:24]} 12. Ne4 {[%clk 01:22:17]} {[%emt 00:04:00]} Nxe5 {[%clk 01:20:58]}
{[%emt 00:03:52]} 13. fxe5 {[%clk 01:22:27]} {[%emt 00:00:21]} dxe5 {[%clk
01:20:35]} {[%emt 00:00:53]} 14. O-O {[%clk 01:21:12]} {[%emt 00:01:45]} f5
{[%clk 01:19:59]} {[%emt 00:01:06]} 15. Nxc5 {[%clk 01:08:02]} {[%emt
00:13:41]} Qb6 {[%clk 01:15:53]} {[%emt 00:04:35]} 16. Be3 {[%clk 01:08:12]}
{[%emt 00:00:20]} e4 {[%clk 01:12:02]} {[%emt 00:04:20]} 17. Nd2 {[%clk
01:07:45]} {[%emt 00:00:57]} Ba6 {[%clk 01:09:42]} {[%emt 00:02:50]} 18. Ndb3
{[%clk 01:02:05]} {[%emt 00:06:11]} Re8 {[%clk 01:04:56]} {[%emt 00:05:15]} 19.
Bxa6 {[%clk 01:00:05]} {[%emt 00:02:31]} Nxa6 {[%clk 01:05:08]} {[%emt
00:00:17]} 20. Qe2 {[%clk 01:00:24]} {[%emt 00:00:11]} Nxc5 {[%clk 01:04:22]}
{[%emt 00:01:17]} 21. Bxc5 {[%clk 01:00:00]} {[%emt 00:00:53]} Qd8 {[%clk
01:04:37]} {[%emt 00:00:15]} 22. d6 {[%clk 00:57:35]} {[%emt 00:02:56]} Be5
{[%clk 01:04:26]} {[%emt 00:00:39]} 23. Bxb4 {[%clk 00:53:19]} {[%emt
00:04:47]} Bxd6 {[%clk 01:01:31]} {[%emt 00:03:24]} 24. Qc4+ {[%clk 00:53:05]}
{[%emt 00:00:45]} Kh8 {[%clk 01:00:34]} {[%emt 00:01:27]} 25. Bc3+ {[%clk
00:48:58]} {[%emt 00:04:37]} Be5 {[%clk 01:00:43]} {[%emt 00:00:21]} 26. Rad1
{[%clk 00:48:06]} {[%emt 00:01:22]} Qf6 {[%clk 01:00:12]} {[%emt 00:00:59]} 27.
Bxe5 {[%clk 00:44:12]} {[%emt 00:04:26]} Qxe5 {[%clk 01:00:31]} {[%emt
00:00:11]} 28. Qd4 {[%clk 00:44:29]} {[%emt 00:00:14]} e3 {[%emt 00:01:00]} 1-0

[Event "South Island Championships 2023"]
[Site "Oamaru, New Zealand"]
[Date "2023.09.30"]
[Round "8.9"]
[White "Malcolm, Leo"]
[Black "Barry, Jacob"]
[Result "1-0"]
[TimeControl "90 + 30"]
[WhiteFideId "4317408"]
[BlackFideId "4304462"]
[WhiteElo "1876"]
[BlackElo "1565"]

1. e4 {[%clk 01:30:57]} {[%emt 00:00:02]} e5 {[%clk 01:30:57]} {[%emt
00:00:04]} 2. Nc3 {[%clk 01:31:03]} {[%emt 00:00:24]} Nf6 {[%clk 01:31:15]}
{[%emt 00:00:13]} 3. Nf3 {[%clk 01:31:28]} {[%emt 00:00:04]} Nc6 {[%clk
01:31:40]} {[%emt 00:00:06]} 4. Nxe5 {[%clk 01:31:52]} {[%emt 00:00:06]} Nxe5
{[%clk 01:31:50]} {[%emt 00:00:20]} 5. d4 {[%clk 01:32:17]} {[%emt 00:00:05]}
Nc6 {[%clk 01:31:33]} {[%emt 00:00:47]} 6. d5 {[%clk 01:32:41]} {[%emt
00:00:05]} Ne5 {[%clk 01:31:11]} {[%emt 00:00:52]} 7. f4 {[%clk 01:32:56]}
{[%emt 00:00:16]} Ng6 {[%clk 01:31:13]} {[%emt 00:00:27]} 8. e5 {[%clk
01:33:15]} {[%emt 00:00:10]} Bb4 {[%clk 01:30:22]} {[%emt 00:01:22]} 9. exf6
{[%clk 01:29:56]} {[%emt 00:03:49]} Qxf6 {[%clk 01:30:45]} {[%emt 00:00:06]} 10.
Qf3 {[%clk 01:30:21]} {[%emt 00:00:05]} Bxc3+ {[%clk 01:29:51]} {[%emt
00:01:24]} 11. bxc3 {[%clk 01:30:45]} {[%emt 00:00:06]} O-O {[%clk 01:30:04]}
{[%emt 00:00:16]} 12. Be2 {[%clk 01:29:00]} {[%emt 00:02:16]} Re8 {[%clk
01:29:13]} {[%emt 00:01:21]} 13. O-O {[%clk 01:28:41]} {[%emt 00:00:49]} Nh4
{[%emt 00:09:52]} 14. Qf2 {[%clk 01:01:37]} {[%emt 00:21:00]} Qxc3 {[%clk
01:24:29]} {[%emt 00:02:26]} 15. Qxh4 {[%clk 01:01:18]} {[%emt 00:00:48]} Qxa1
{[%clk 01:24:52]} {[%emt 00:00:07]} 16. Bd3 {[%clk 01:01:44]} {[%emt 00:00:05]}
Qd4+ {[%clk 01:23:33]} {[%emt 00:01:48]} 17. Kh1 {[%clk 01:01:57]} {[%emt
00:00:18]} g6 {[%clk 01:23:17]} {[%emt 00:00:45]} 18. Qg3 {[%clk 00:50:01]}
{[%emt 00:12:28]} Qxd5 {[%clk 01:18:10]} {[%emt 00:05:35]} 19. f5 {[%clk
00:42:25]} {[%emt 00:08:07]} Qe5 {[%clk 01:18:13]} {[%emt 00:00:27]} 20. Bf4
{[%clk 00:42:35]} {[%emt 00:00:20]} Qg7 {[%clk 01:18:10]} {[%emt 00:00:32]} 21.
Qh4 {[%clk 00:35:38]} {[%emt 00:07:28]} gxf5 {[%clk 01:16:21]} {[%emt
00:02:20]} 22. Bh6 {[%clk 00:26:33]} {[%emt 00:09:32]} Qg4 {[%clk 01:15:35]}
{[%emt 00:01:17]} 23. Re1 {[%clk 00:26:20]} {[%emt 00:00:44]} Rf8 {[%clk
01:14:27]} {[%emt 00:01:38]} 24. Qe7 {[%clk 00:26:37]} {[%emt 00:00:55]} 1-0

[Event "South Island Championships 2023"]
[Site "Oamaru, New Zealand"]
[Date "2023.09.30"]
[Round "8.2"]
[White "Lee, Edward S"]
[Black "Ong, Rommel"]
[Result "1-0"]
[TimeControl "90 + 30"]
[WhiteFideId "4303229"]
[BlackFideId "5259630"]
[WhiteElo "2088"]
[BlackElo "1852"]

1. e4 {[%clk 01:30:58]} {[%emt 00:00:01]} c5 {[%clk 01:30:52]} {[%emt
00:00:09]} 2. Nc3 {[%clk 01:31:22]} {[%emt 00:00:06]} Nc6 {[%clk 01:31:09]}
{[%emt 00:00:13]} 3. f4 {[%clk 01:31:38]} {[%emt 00:00:13]} e6 {[%clk
01:30:00]} {[%emt 00:01:40]} 4. Bb5 {[%clk 01:31:41]} {[%emt 00:00:27]} Nge7
{[%clk 01:28:31]} {[%emt 00:01:58]} 5. Bxc6 {[%clk 01:29:33]} {[%emt 00:02:39]}
Nxc6 {[%clk 01:28:54]} {[%emt 00:00:07]} 6. Nf3 {[%clk 01:29:55]} {[%emt
00:00:07]} d5 {[%clk 01:29:07]} {[%emt 00:00:18]} 7. e5 {[%clk 01:29:54]}
{[%emt 00:00:30]} Be7 {[%clk 01:27:00]} {[%emt 00:02:37]} 8. O-O {[%clk
01:29:28]} {[%emt 00:00:56]} O-O {[%clk 01:25:48]} {[%emt 00:01:42]} 9. d3
{[%clk 01:28:06]} {[%emt 00:01:53]} a6 {[%clk 01:25:39]} {[%emt 00:00:39]} 10.
a3 {[%clk 01:27:50]} {[%emt 00:00:45]} b5 {[%clk 01:25:53]} {[%emt 00:00:16]}
11. Qe1 {[%clk 01:27:46]} {[%emt 00:00:35]} Kh8 {[%clk 01:19:09]} {[%emt
00:07:13]} 12. d4 {[%clk 01:12:08]} {[%emt 00:16:08]} cxd4 {[%clk 01:18:32]}
{[%emt 00:01:09]} 13. Ne2 {[%clk 01:12:28]} {[%emt 00:00:09]} Bd7 {[%clk
01:14:39]} {[%emt 00:04:23]} 14. Nexd4 {[%clk 01:11:45]} {[%emt 00:01:12]} Rc8
{[%clk 01:10:36]} {[%emt 00:04:33]} 15. c3 {[%clk 01:10:59]} {[%emt 00:01:16]}
Nxd4 {[%clk 01:08:38]} {[%emt 00:02:29]} 16. Nxd4 {[%clk 01:11:09]} {[%emt
00:00:20]} Bc5 {[%clk 01:07:11]} {[%emt 00:01:57]} 17. Be3 {[%clk 01:11:05]}
{[%emt 00:00:34]} Bxd4 {[%clk 01:07:21]} {[%emt 00:00:20]} 18. Bxd4 {[%clk
01:11:21]} {[%emt 00:00:13]} Rc4 {[%clk 00:58:41]} {[%emt 00:09:11]} 19. Qg3
{[%clk 01:10:48]} {[%emt 00:01:02]} g6 {[%clk 00:56:24]} {[%emt 00:02:47]} 20.
Rad1 {[%clk 01:07:00]} {[%emt 00:04:18]} Rg8 {[%clk 00:56:36]} {[%emt
00:00:18]} 21. Rd3 {[%clk 01:01:50]} {[%emt 00:05:40]} Rg7 {[%clk 00:56:45]}
{[%emt 00:00:22]} 22. Rff3 {[%clk 00:45:01]} {[%emt 00:17:19]} Kg8 {[%clk
00:56:23]} {[%emt 00:00:51]} 23. Qe1 {[%clk 00:45:01]} {[%emt 00:00:30]} h6
{[%clk 00:40:22]} {[%emt 00:16:31]} 24. Rh3 {[%clk 00:42:21]} {[%emt 00:03:10]}
Rh7 {[%clk 00:40:50]} {[%emt 00:00:03]} 25. Rdg3 {[%clk 00:42:03]} {[%emt
00:00:47]} Kf8 {[%clk 00:40:15]} {[%emt 00:01:06]} 26. Qe3 {[%clk 00:41:09]}
{[%emt 00:01:22]} h5 {[%clk 00:34:26]} {[%emt 00:06:20]} 27. Rg5 {[%clk
00:41:03]} {[%emt 00:00:35]} Qe7 {[%clk 00:33:08]} {[%emt 00:01:48]} 28. g4
{[%clk 00:40:17]} {[%emt 00:01:16]} h4 {[%clk 00:33:01]} {[%emt 00:00:38]} 29.
Qf2 {[%clk 00:40:18]} {[%emt 00:00:29]} Ke8 {[%clk 00:31:48]} {[%emt 00:01:43]}
30. Rxh4 {[%clk 00:40:31]} {[%emt 00:00:16]} Rxh4 {[%clk 00:32:14]} {[%emt
00:00:05]} 31. Qxh4 {[%clk 00:40:53]} {[%emt 00:00:08]} Kd8 {[%clk 00:32:22]}
{[%emt 00:00:22]} 32. Qh7 {[%clk 00:38:52]} {[%emt 00:02:30]} Be8 {[%clk
00:30:11]} {[%emt 00:02:41]} 33. Qh4 {[%clk 00:38:19]} {[%emt 00:01:02]} Kc8
{[%clk 00:26:23]} {[%emt 00:04:20]} 34. Rh5 {[%clk 00:37:45]} {[%emt 00:01:03]}
Qxh4 {[%clk 00:22:11]} {[%emt 00:04:42]} 35. Rxh4 {[%clk 00:37:45]} {[%emt
00:00:30]} a5 {[%clk 00:22:15]} {[%emt 00:00:27]} 36. Rh3 {[%clk 00:36:57]}
{[%emt 00:01:17]} b4 {[%clk 00:15:22]} {[%emt 00:07:23]} 37. axb4 {[%clk
00:36:44]} {[%emt 00:00:42]} axb4 {[%clk 00:15:33]} {[%emt 00:00:19]} 38. b3
{[%clk 00:33:08]} {[%emt 00:04:06]} Rc6 {[%clk 00:13:46]} {[%emt 00:02:17]} 39.
cxb4 {[%clk 00:32:55]} {[%emt 00:00:43]} Rc1+ {[%clk 00:14:08]} {[%emt
00:00:07]} 40. Kf2 {[%clk 00:32:23]} {[%emt 00:01:03]} Rb1 {[%clk 00:12:31]}
{[%emt 00:02:07]} 41. Rh8 {[%clk 00:22:17]} {[%emt 00:10:35]} Kd7 {[%clk
00:11:16]} {[%emt 00:01:46]} 42. b5 {[%clk 00:21:37]} {[%emt 00:01:10]} Rxb3
{[%clk 00:11:40]} {[%emt 00:00:06]} 43. b6 {[%clk 00:21:54]} {[%emt 00:00:13]}
Rb5 {[%clk 00:10:29]} {[%emt 00:01:41]} 44. h4 {[%clk 00:21:58]} {[%emt
00:00:26]} Ke7 {[%clk 00:10:48]} {[%emt 00:00:12]} 45. h5 {[%clk 00:22:11]}
{[%emt 00:00:16]} gxh5 {[%clk 00:11:07]} {[%emt 00:00:11]} 46. gxh5 {[%clk
00:22:36]} {[%emt 00:00:05]} Bc6 {[%clk 00:11:19]} {[%emt 00:00:19]} 47. Rc8
{[%clk 00:22:11]} {[%emt 00:00:54]} Be8 {[%clk 00:09:41]} {[%emt 00:02:09]} 48.
Bc5+ {[%clk 00:22:22]} {[%emt 00:00:19]} Kd7 {[%clk 00:09:44]} {[%emt
00:00:27]} 49. Rc7+ {[%clk 00:22:45]} {[%emt 00:00:06]} Kd8 {[%clk 00:10:07]}
{[%emt 00:00:08]} 50. Be7# {[%clk 00:22:05]} {[%emt 00:00:05]} 1-0

[Event "South Island Championships 2023"]
[Site "Oamaru, New Zealand"]
[Date "2023.09.30"]
[Round "8.1"]
[White "Zhang, Kendrick Botong"]
[Black "McNabb, Matthew D"]
[Result "1/2-1/2"]
[TimeControl "90 + 30"]
[WhiteFideId "4307704"]
[BlackFideId "4300823"]
[WhiteElo "2067"]
[BlackElo "2236"]

1. e4 {[%clk 01:30:57]} {[%emt 00:00:02]} e5 {[%clk 01:30:57]} {[%emt
00:00:04]} 2. Nf3 {[%clk 01:31:22]} {[%emt 00:00:05]} Nf6 {[%clk 01:31:24]}
{[%emt 00:00:03]} 3. Nxe5 {[%clk 01:31:42]} {[%emt 00:00:09]} d6 {[%clk
01:31:52]} {[%emt 00:00:03]} 4. Nf3 {[%clk 01:30:25]} {[%emt 00:01:47]} Nxe4
{[%clk 01:32:16]} {[%emt 00:00:05]} 5. d4 {[%clk 01:28:01]} {[%emt 00:02:54]}
d5 {[%clk 01:32:30]} {[%emt 00:00:16]} 6. Bd3 {[%clk 01:25:56]} {[%emt
00:02:35]} Nc6 {[%clk 01:28:51]} {[%emt 00:04:10]} 7. c3 {[%clk 01:20:20]}
{[%emt 00:06:04]} Bd6 {[%clk 01:28:21]} {[%emt 00:01:01]} 8. O-O {[%clk
01:19:03]} {[%emt 00:01:47]} O-O {[%clk 01:27:53]} {[%emt 00:01:00]} 9. c4
{[%clk 00:51:36]} {[%emt 00:27:57]} Nb4 {[%clk 01:26:42]} {[%emt 00:01:40]} 10.
c5 {[%clk 00:46:42]} {[%emt 00:05:24]} Nxd3 {[%clk 01:22:33]} {[%emt 00:04:39]}
11. Qxd3 {[%clk 00:45:59]} {[%emt 00:01:12]} Be7 {[%clk 01:22:33]} {[%emt
00:00:30]} 12. Nc3 {[%clk 00:39:05]} {[%emt 00:07:25]} Bf5 {[%clk 01:20:54]}
{[%emt 00:02:09]} 13. Qb5 {[%clk 00:38:29]} {[%emt 00:01:06]} Rb8 {[%clk
01:15:46]} {[%emt 00:05:38]} 14. Be3 {[%clk 00:31:29]} {[%emt 00:07:30]} c6
{[%clk 00:59:46]} {[%emt 00:16:30]} 15. Qa4 {[%clk 00:29:32]} {[%emt 00:02:26]}
Ra8 {[%clk 00:59:19]} {[%emt 00:00:58]} 16. Ne2 {[%clk 00:27:02]} {[%emt
00:03:00]} Bg4 {[%clk 00:50:34]} {[%emt 00:09:15]} 17. Qb3 {[%clk 00:21:07]}
{[%emt 00:06:24]} Qc8 {[%clk 00:50:31]} {[%emt 00:00:32]} 18. Bf4 {[%clk
00:20:39]} {[%emt 00:00:58]} g5 {[%clk 00:48:28]} {[%emt 00:02:34]} 19. Bc1
{[%clk 00:16:53]} {[%emt 00:04:15]} Kh8 {[%clk 00:45:54]} {[%emt 00:03:05]} 20.
Ng3 {[%clk 00:15:14]} {[%emt 00:02:09]} Nxg3 {[%clk 00:44:54]} {[%emt
00:01:30]} 21. fxg3 {[%clk 00:13:22]} {[%emt 00:02:22]} f6 {[%clk 00:44:56]}
{[%emt 00:00:29]} 22. Bd2 {[%clk 00:10:27]} {[%emt 00:03:24]} Qd7 {[%clk
00:44:58]} {[%emt 00:00:29]} 23. Rae1 {[%clk 00:09:59]} {[%emt 00:00:57]} Rae8
{[%clk 00:45:18]} {[%emt 00:00:10]} 24. Re3 {[%clk 00:04:11]} {[%emt 00:06:17]}
Bd8 {[%clk 00:41:12]} {[%emt 00:04:37]} 25. Rfe1 {[%clk 00:03:57]} {[%emt
00:00:44]} Bh5 {[%clk 00:33:15]} {[%emt 00:08:27]} 26. Qa3 {[%clk 00:03:45]}
{[%emt 00:00:43]} a6 {[%clk 00:30:23]} {[%emt 00:03:21]} 27. Ba5 {[%clk
00:03:01]} {[%emt 00:01:13]} Bg6 {[%clk 00:14:48]} {[%emt 00:16:05]} 28. Bxd8
{[%clk 00:02:55]} {[%emt 00:00:36]} Qxd8 {[%clk 00:15:06]} {[%emt 00:00:12]} 29.
b4 {[%clk 00:03:00]} {[%emt 00:00:26]} Re4 {[%clk 00:15:19]} {[%emt 00:00:17]}
30. Qc3 {[%clk 00:02:43]} {[%emt 00:00:47]} Rfe8 {[%clk 00:14:56]} {[%emt
00:00:54]} 31. Nd2 {[%clk 00:02:57]} {[%emt 00:00:15]} R4e7 {[%clk 00:14:13]}
{[%emt 00:01:13]} 32. Nb3 {[%clk 00:01:12]} {[%emt 00:02:15]} Be4 {[%clk
00:14:13]} {[%emt 00:00:30]} 33. a4 {[%clk 00:01:14]} {[%emt 00:00:28]} Kg7
{[%clk 00:13:56]} {[%emt 00:00:47]} 34. Nd2 {[%clk 00:01:05]} {[%emt 00:00:39]}
Bg6 {[%clk 00:14:01]} {[%emt 00:00:25]} 35. Kf2 {[%clk 00:00:51]} {[%emt
00:00:43]} Be4 {[%clk 00:13:12]} {[%emt 00:01:20]} 36. Nb3 {[%clk 00:00:32]}
{[%emt 00:00:48]} Qd7 {[%clk 00:13:25]} {[%emt 00:00:18]} 37. Nd2 {[%clk
00:00:41]} {[%emt 00:00:20]} h5 {[%clk 00:13:39]} {[%emt 00:00:16]} 38. Nf3
{[%clk 00:00:32]} {[%emt 00:00:39]} Qf5 {[%clk 00:13:39]} {[%emt 00:00:30]} 39.
Kg1 {[%clk 00:00:51]} {[%emt 00:00:12]} Qg4 {[%clk 00:11:01]} {[%emt 00:03:09]}
40. Nd2 {[%clk 00:00:45]} {[%emt 00:00:35]} Qd7 {[%clk 00:11:23]} {[%emt
00:00:08]} 41. Nf3 {[%clk 00:00:50]} {[%emt 00:00:24]} Qg4 {[%clk 00:09:51]}
{[%emt 00:02:02]} 42. Nd2 {[%clk 00:00:36]} {[%emt 00:00:45]} Qd7 {[%clk
00:08:38]} {[%emt 00:01:43]} 43. Nf3 {[%clk 00:00:54]} {[%emt 00:00:12]} Qg4
{[%emt 00:05:59]} 1/2-1/2